fUST/lending_fUST_20240705
["ID","MTS","AMOUNT","RATE_DAILY","PERIOD"]
[331193920,1720128669691,-500.0,0.00016164,2]
[331193921,1720128669701,-6360.79,0.00016164,2]
[331193922,1720128669710,-563.83,0.00016164,2]
[331193923,1720128669720,-151.0,0.00016164,2]
[331193924,1720128669729,-151.0,0.00016164,2]
[331193925,1720128669739,-500.0,0.00016164,2]
[331193926,1720128669748,-500.0,0.00016164,2]
[331193927,1720128669757,-823.72,0.00016164,2]
[331193928,1720128669767,-500.0,0.00016164,2]
[331193929,1720128669777,-156.52,0.00016164,2]
[331193930,1720128669788,-642.59,0.00016164,2]
[331193931,1720128669797,-500.0,0.00016164,2]
[331193932,1720128669807,-500.0,0.00016164,2]
[331193933,1720128669817,-151.0,0.00016164,2]
[331193934,1720128669826,-151.0,0.00016164,2]
[331193935,1720128669836,-1045.8,0.00016164,2]
[331193936,1720128669847,-513.04,0.00016164,2]
[331193937,1720128669858,-1125.77,0.00016164,2]
[331193938,1720128669868,-534.61,0.00016164,2]
[331193939,1720128669877,-500.0,0.00016164,2]
[331193940,1720128669887,-1272.93,0.00016164,2]
[331193941,1720128669897,-5083.19,0.00016164,2]
[331193942,1720128669906,-226.635779,0.00016164,2]
[331193943,1720128669916,-226.635779,0.00016164,2]
[331193944,1720128669927,-562.68,0.00016164,2]
[331193945,1720128669937,-675.37,0.00016164,2]
[331193946,1720128669946,-500.0,0.00016164,2]
[331193947,1720128669955,-500.0,0.00016164,2]
[331193948,1720128669964,-500.0,0.00016164,2]
[331193949,1720128669973,-688.59,0.00016164,2]
[331193950,1720128669983,-500.0,0.00016164,2]
[331193951,1720128669993,-1791.43,0.00016164,2]
[331193952,1720128670002,-594.24,0.00016164,2]
[331193953,1720128670012,-2308.28,0.00016164,2]
[331193954,1720128670022,-537.27,0.00016164,2]
[331193955,1720128670031,-500.0,0.00016164,2]
[331193956,1720128670042,-1192.06,0.00016164,2]
[331193957,1720128670052,-695.14,0.00016164,2]
[331193958,1720128670061,-480.55,0.00016164,2]
[331193959,1720128670071,-7254.05,0.00016164,2]
[331193960,1720128670082,-491.91,0.00016164,2]
[331193961,1720128670091,-520.37,0.00016164,2]
[331193962,1720128670101,-2269.97,0.00016164,2]
[331193963,1720128670111,-770.77,0.00016164,2]
[331193964,1720128670121,-1056.77,0.00016164,2]
[331193965,1720128670130,-500.0,0.00016164,2]
[331193966,1720128670140,-420.36,0.00016164,2]
[331193967,1720128670149,-3294.46,0.00016164,2]
[331193968,1720128670159,-3373.82,0.00016164,2]
[331193969,1720128670168,-4170.92,0.00016164,2]
[331193970,1720128670178,-500.0,0.00016164,2]
[331193971,1720128670187,-6584.01,0.00016164,2]
[331193972,1720128670197,-500.0,0.00016164,2]
[331193973,1720128670207,-500.0,0.00016164,2]
[331193974,1720128670218,-13448.85,0.00016164,2]
[331193975,1720128670228,-295.1,0.00016164,2]
[331193976,1720128670238,-247.66971773,0.00016164,2]
[331193977,1720128670247,-500.0,0.00016164,2]
[331193978,1720128670257,-500.0,0.00016164,2]
[331193979,1720128670267,-3838.68,0.00016253,2]
[331193980,1720128670277,-3838.68,0.00016253,2]
[331193981,1720128670288,-3838.68,0.00016253,2]
[331193982,1720128670298,-3838.68,0.00016253,2]
[331193983,1720128670307,-3838.68,0.00016253,2]
[331193984,1720128670316,-3838.68,0.00016253,2]
[331193985,1720128670326,-3838.75152465,0.00016253,2]
[331193986,1720128670336,-500.0,0.00016253,2]
[331193987,1720128670346,-500.0,0.00016253,2]
[331193988,1720128670356,-500.0,0.00016253,2]
[331193989,1720128670366,-500.0,0.00016253,2]
[331193990,1720128670375,-500.0,0.00016253,2]
[331193991,1720128670385,-550.99411639,0.00016253,2]
[331193992,1720128670394,-72518.72190285,0.00016254,2]
[331193993,1720128670404,-97256.42127027,0.00016254,2]
[331193994,1720128670414,-103942.90155764,0.00016254,2]
[331193995,1720128674273,400.0,0.00029046,30]
[331193996,1720128674836,752.458395,0.00029046,30]
[331194010,1720128834061,1000.0,0.00029046,120]
[331194011,1720128834447,1000.0,0.00029046,120]
[331194012,1720128834864,297.2,0.00029046,120]
[331194013,1720128836139,275.18534553,0.00029046,30]
[331194014,1720128836555,275.18534553,0.00029046,30]
[331194015,1720128837238,275.18534553,0.00029046,30]
[331194016,1720128837499,275.18534553,0.00029046,30]
[331194017,1720128838181,275.18534553,0.00029046,30]
[331194018,1720128838633,275.18534553,0.00029046,30]
[331194019,1720128839039,275.18534544,0.00029046,30]
[331194030,1720128964798,2419.46410238,0.00029739,120]
[331194032,1720128970317,1053.45540674,0.00029739,120]
[331194033,1720128973776,150.0,0.00029739,30]
[331194034,1720128981914,2062.83856944,0.00029739,120]
[331194035,1720128983539,510.68112234,0.00029739,30]
[331194036,1720128986346,1331.90984165,0.00029739,30]
[331194038,1720128994714,392.78695468,0.00029739,30]
[331194039,1720129006597,793.02518135,0.00029739,30]
[331194040,1720129011282,2675.92559443,0.00029739,120]
[331194041,1720129018540,409.62956226,0.00029739,60]
[331194042,1720129021830,2080.10575774,0.00029739,120]
[331194043,1720129022999,1289.82164023,0.00029739,120]
[331194044,1720129025687,1172.27341275,0.00029739,30]
[331194045,1720129026572,590.74633948,0.00029739,30]
[331194046,1720129029771,343.32971957,0.00029739,120]
[331194047,1720129031310,2200.38416112,0.00029739,60]
[331194048,1720129032152,1907.01532251,0.00029739,30]
[331194049,1720129033911,2191.38141996,0.00029739,120]
[331194050,1720129035172,393.56849913,0.00029739,120]
[331194051,1720129035264,31532.84753603,0.00029739,30]
[331194052,1720129035507,229.95992566,0.00029739,30]
[331194053,1720129035550,2000.0,0.00029739,120]
[331194054,1720129036209,1021.42933029,0.00029739,120]
[331194055,1720129036662,1705.64020846,0.00029739,30]
[331194056,1720129037108,884.89089234,0.00029739,120]
[331194057,1720129037169,323.66188023,0.0001,2]
[331194058,1720129037199,728.66089665,0.00029739,30]
[331194059,1720129037227,2479.93242975,0.00029739,120]
[331194060,1720129037920,1002.8999846,0.00029739,120]
[331194061,1720129047813,200.0,0.00029739,30]
[331194062,1720129048275,300.0,0.00029739,30]
[331194064,1720129103567,154.83742071,9.999e-05,2]
[331194067,1720129172833,164.43338825,9.999e-05,2]
[331194068,1720129178588,735.77111833,9.999e-05,2]
[331194069,1720129180064,4574.73167541,9.999e-05,2]
[331194070,1720129193580,735.77111833,9.999e-05,2]
[331194071,1720129233520,215.61294534,9.999e-05,2]
[331194072,1720129237836,500.0,9.999e-05,2]
[331194073,1720129266314,258.80025544,9.999e-05,2]
[331194074,1720129292088,408.7617324,9.999e-05,2]
[331194077,1720129330871,491.78712848,9.999e-05,2]
[331194079,1720129388046,168.89279474,9.999e-05,2]
[331194080,1720129394083,212.96486258,9.999e-05,2]
[331194087,1720129436119,210.97543157,0.00029606,30]
[331194088,1720129436462,210.97543157,0.00029606,30]
[331194089,1720129437111,210.97543157,0.00029606,30]
[331194090,1720129437501,210.97543157,0.00029606,30]
[331194091,1720129437843,210.97543157,0.00029606,30]
[331194092,1720129438297,210.97543157,0.00029606,30]
[331194093,1720129438567,210.97543166,0.00029606,30]
[331194097,1720129511648,992.894525,9.999e-05,2]
[331194098,1720129515261,908.22919531,9.999e-05,2]
[331194099,1720129525826,154.83742071,9.999e-05,2]
[331194100,1720129526953,294.67476711,9.999e-05,2]
[331194103,1720129546904,155.46753523,9.999e-05,2]
[331194104,1720129548087,212.96486258,9.999e-05,2]
[331194106,1720129552040,176.30685021,9.999e-05,2]
[331194107,1720129554031,14047.59227966,9.999e-05,2]
[331194110,1720129584462,155.14597482,9.999e-05,2]
[331194113,1720129592351,19378.48287081,9.999e-05,2]
[331194114,1720129601940,2227.63025687,9.999e-05,2]
[331194116,1720129625360,156.80969809,9.999e-05,2]
[331194117,1720129628239,-166.45259493,0.0001212,2]
[331194118,1720129628259,-212.96486258,0.0001212,2]
[331194119,1720129628278,-196.62215342,0.0001212,2]
[331194120,1720129628298,-300.0,0.0001235,2]
[331194121,1720129628319,-2797.44862295,0.00012351,2]
[331194122,1720129641127,-531.73899512,0.0001212,2]
[331194123,1720129641154,-22102.55137705,0.00012351,2]
[331194124,1720129641176,-9996.3809785,0.000125,2]
[331194125,1720129641198,-4718.01583555,0.000129,2]
[331194126,1720129641220,-907.95798163,0.00013498,2]
[331194127,1720129641243,-300.0,0.00013585,2]
[331194128,1720129641262,-578.45360315,0.00013598,2]
[331194129,1720129641284,-5558.01194256,0.00013688,2]
[331194130,1720129641303,-500.0,0.00013698,2]
[331194131,1720129641323,-507.02019711,0.00013698,2]
[331194132,1720129641344,-500.0,0.00013698,2]
[331194133,1720129641365,-500.0,0.00013698,2]
[331194134,1720129641386,-500.0,0.00013698,2]
[331194135,1720129641406,-500.0,0.00013698,2]
[331194136,1720129641426,-500.0,0.00013698,2]
[331194137,1720129641446,-500.0,0.00013698,2]
[331194138,1720129641468,-504.01875086,0.00013698,2]
[331194139,1720129641494,-500.0,0.00013698,2]
[331194140,1720129641514,-502.67570938,0.00013698,2]
[331194141,1720129641534,-500.0,0.00013698,2]
[331194142,1720129641553,-502.40244211,0.00013698,2]
[331194143,1720129641572,-500.0,0.00013698,2]
[331194144,1720129641592,-500.0,0.00013698,2]
[331194145,1720129641611,-500.0,0.00013698,2]
[331194146,1720129641630,-500.0,0.00013698,2]
[331194147,1720129641649,-500.0,0.00013698,2]
[331194148,1720129641670,-500.0,0.00013698,2]
[331194149,1720129641691,-500.0,0.00013698,2]
[331194150,1720129641710,-500.0,0.00013698,2]
[331194151,1720129641730,-502.68691975,0.00013698,2]
[331194152,1720129641749,-500.0,0.00013698,2]
[331194153,1720129641770,-500.0,0.00013698,2]
[331194154,1720129641790,-500.0,0.00013698,2]
[331194155,1720129641810,-610.12986049,0.00013698,2]
[331194156,1720129641830,-500.0,0.00013698,2]
[331194157,1720129641849,-501.45431292,0.00013698,2]
[331194158,1720129641869,-500.0,0.00013698,2]
[331194159,1720129641888,-512.67373948,0.00013698,2]
[331194160,1720129641909,-572.477477,0.00013698,2]
[331194161,1720129641928,-505.97981691,0.00013698,2]
[331194162,1720129641948,-273.82684238,0.00013698,2]
[331194163,1720129641968,-500.0,0.00013698,2]
[331194164,1720129641989,-500.0,0.00013698,2]
[331194165,1720129642010,-500.0,0.00013698,2]
[331194166,1720129642030,-502.57306464,0.00013698,2]
[331194167,1720129642049,-508.48056534,0.00013698,2]
[331194168,1720129642070,-505.63445347,0.00013698,2]
[331194169,1720129642091,-500.0,0.00013698,2]
[331194170,1720129642110,-500.0,0.00013698,2]
[331194171,1720129642131,-500.0,0.00013698,2]
[331194172,1720129642157,-500.0,0.00013698,2]
[331194173,1720129642177,-500.0,0.00013698,2]
[331194174,1720129642201,-500.0,0.00013698,2]
[331194175,1720129642222,-500.0,0.00013698,2]
[331194176,1720129642242,-500.0,0.00013698,2]
[331194177,1720129642262,-500.0,0.00013698,2]
[331194178,1720129642283,-500.0,0.00013698,2]
[331194179,1720129642302,-500.0,0.00013698,2]
[331194180,1720129642323,-267.24611504,0.00013698,2]
[331194181,1720129642344,-500.0,0.00013698,2]
[331194182,1720129642364,-500.0,0.00013698,2]
[331194183,1720129642384,-500.0,0.00013698,2]
[331194184,1720129642405,-509.69719731,0.00013698,2]
[331194185,1720129642424,-503.71636335,0.00013698,2]
[331194186,1720129642444,-500.0,0.00013698,2]
[331194187,1720129642464,-500.0,0.00013698,2]
[331194188,1720129642484,-614.92457479,0.00013698,2]
[331194189,1720129642504,-500.0,0.00013698,2]
[331194190,1720129642523,-302.29984861,0.00013698,2]
[331194191,1720129642543,-500.0,0.00013698,2]
[331194192,1720129642563,-500.0,0.00013698,2]
[331194193,1720129642583,-500.0,0.00013698,2]
[331194194,1720129642602,-500.0,0.00013698,2]
[331194195,1720129642622,-564.93040162,0.00013698,2]
[331194196,1720129642641,-500.0,0.00013698,2]
[331194197,1720129642661,-500.0,0.00013698,2]
[331194198,1720129642682,-500.0,0.00013698,2]
[331194199,1720129642703,-500.0,0.00013698,2]
[331194200,1720129642722,-500.0,0.00013698,2]
[331194201,1720129642742,-515.57382204,0.00013698,2]
[331194202,1720129642762,-500.0,0.00013698,2]
[331194203,1720129642782,-500.0,0.00013698,2]
[331194204,1720129642802,-258.5109013,0.00013698,2]
[331194205,1720129642822,-501.28598276,0.00013698,2]
[331194206,1720129642842,-500.0,0.00013698,2]
[331194207,1720129642862,-500.0,0.00013698,2]
[331194208,1720129642883,-500.0,0.00013698,2]
[331194209,1720129642903,-500.0,0.00013698,2]
[331194210,1720129642922,-500.0,0.00013698,2]
[331194211,1720129642942,-500.0,0.00013698,2]
[331194212,1720129642962,-500.0,0.00013698,2]
[331194213,1720129642982,-500.0,0.00013698,2]
[331194214,1720129643002,-500.0,0.00013698,2]
[331194215,1720129643022,-500.0,0.00013698,2]
[331194216,1720129643042,-500.0,0.00013698,2]
[331194217,1720129643062,-382.98564465,0.00013698,2]
[331194218,1720129643083,-500.0,0.00013698,2]
[331194219,1720129643103,-500.0,0.00013698,2]
[331194220,1720129643122,-500.0,0.00013698,2]
[331194221,1720129643145,-500.0,0.00013698,2]
[331194222,1720129643166,-500.0,0.00013698,2]
[331194223,1720129643188,-500.0,0.00013698,2]
[331194224,1720129643208,-500.0,0.00013698,2]
[331194225,1720129643231,-500.0,0.00013698,2]
[331194226,1720129643250,-500.0,0.00013698,2]
[331194227,1720129643270,-500.0,0.00013698,2]
[331194228,1720129643290,-500.0,0.00013698,2]
[331194229,1720129643312,-500.0,0.00013698,2]
[331194230,1720129643335,-500.0,0.00013698,2]
[331194231,1720129643360,-504.97517005,0.00013698,2]
[331194232,1720129643380,-500.0,0.00013698,2]
[331194233,1720129643400,-517.61177439,0.00013698,2]
[331194234,1720129643524,-500.0,0.00013698,2]
[331194235,1720129643549,-500.0,0.00013698,2]
[331194236,1720129643570,-500.0,0.00013698,2]
[331194237,1720129643592,-500.0,0.00013698,2]
[331194238,1720129643612,-500.0,0.00013698,2]
[331194239,1720129643631,-500.0,0.00013698,2]
[331194240,1720129643650,-500.0,0.00013698,2]
[331194241,1720129643670,-500.0,0.00013698,2]
[331194242,1720129643691,-500.0,0.00013698,2]
[331194243,1720129643711,-500.0,0.00013698,2]
[331194244,1720129643730,-563.20368314,0.00013698,2]
[331194245,1720129643750,-500.0,0.00013698,2]
[331194246,1720129643770,-500.0,0.00013698,2]
[331194247,1720129643790,-500.0,0.00013698,2]
[331194248,1720129643810,-500.0,0.00013698,2]
[331194249,1720129643828,-520.89678665,0.00013698,2]
[331194250,1720129643850,-500.0,0.00013698,2]
[331194251,1720129643873,-500.0,0.00013698,2]
[331194252,1720129643895,-555.98858523,0.00013698,2]
[331194253,1720129643915,-500.0,0.00013698,2]
[331194254,1720129643935,-500.0,0.00013698,2]
[331194255,1720129643958,-500.0,0.00013698,2]
[331194256,1720129643979,-647.49,0.00013698,2]
[331194257,1720129644002,-500.0,0.00013698,2]
[331194258,1720129644021,-500.0,0.00013698,2]
[331194259,1720129644041,-500.0,0.00013698,2]
[331194260,1720129644060,-500.0,0.00013698,2]
[331194261,1720129644080,-500.0,0.00013698,2]
[331194262,1720129644099,-500.0,0.00013698,2]
[331194263,1720129644119,-500.0,0.00013698,2]
[331194264,1720129644140,-500.0,0.00013698,2]
[331194265,1720129644161,-500.0,0.00013698,2]
[331194266,1720129644183,-500.0,0.00013698,2]
[331194267,1720129644202,-500.0,0.00013698,2]
[331194268,1720129644223,-500.0,0.00013698,2]
[331194269,1720129644244,-3746.57603158,0.00013698,2]
[331194270,1720129651362,-2925.64089095,0.00013598,2]
[331194271,1720129651384,-375.03396842,0.00013698,2]
[331194272,1720129651405,-500.0,0.00013698,2]
[331194273,1720129651424,-500.0,0.00013698,2]
[331194274,1720129651444,-500.0,0.00013698,2]
[331194275,1720129651463,-500.0,0.00013698,2]
[331194276,1720129651483,-500.0,0.00013698,2]
[331194277,1720129651503,-500.0,0.00013698,2]
[331194278,1720129651522,-500.0,0.00013698,2]
[331194279,1720129651541,-500.0,0.00013698,2]
[331194280,1720129651560,-292.863491,0.00013698,2]
[331194281,1720129651590,-500.0,0.00013698,2]
[331194282,1720129651613,-500.0,0.00013698,2]
[331194283,1720129651634,-500.0,0.00013698,2]
[331194284,1720129651656,-539.50748985,0.00013698,2]
[331194285,1720129651680,-500.0,0.00013698,2]
[331194286,1720129651703,-500.0,0.00013698,2]
[331194287,1720129651724,-500.0,0.00013698,2]
[331194288,1720129651745,-500.0,0.00013698,2]
[331194289,1720129651767,-500.0,0.00013698,2]
[331194290,1720129651788,-500.0,0.00013698,2]
[331194291,1720129651808,-500.0,0.00013698,2]
[331194292,1720129651828,-500.0,0.00013698,2]
[331194293,1720129651848,-500.0,0.00013698,2]
[331194294,1720129651869,-675.88,0.00013698,2]
[331194295,1720129651887,-500.0,0.00013698,2]
[331194296,1720129651907,-500.0,0.00013698,2]
[331194297,1720129651927,-500.0,0.00013698,2]
[331194298,1720129651946,-500.0,0.00013698,2]
[331194299,1720129651965,-500.0,0.00013698,2]
[331194300,1720129651984,-582.35280385,0.00013698,2]
[331194301,1720129652004,-500.0,0.00013698,2]
[331194302,1720129652023,-500.0,0.00013698,2]
[331194303,1720129652043,-500.0,0.00013698,2]
[331194304,1720129652063,-500.0,0.00013698,2]
[331194305,1720129652085,-66.94317593,0.00013698,2]
[331194308,1720129720944,490.88303882,9.999e-05,2]
[331194313,1720129773564,528.63416526,9.999e-05,2]
[331194314,1720129792106,212.96486258,9.999e-05,2]
[331194356,1720129832248,-283.06585599,0.0001212,2]
[331194358,1720129832258,-511.29984109,0.00013598,2]
[331194359,1720129832272,-1588.57560842,0.00013598,2]
[331194417,1720129838375,-2108.55120383,0.00013598,2]
[331194418,1720129838385,-2000.0,0.00013598,2]
[331194419,1720129838394,-3774.41196108,0.00013688,2]
[331194420,1720129838404,-433.05682407,0.00013698,2]
[331194421,1720129838413,-500.0,0.00013698,2]
[331194422,1720129838422,-500.0,0.00013698,2]
[331194423,1720129838432,-500.0,0.00013698,2]
[331194424,1720129838441,-500.0,0.00013698,2]
[331194425,1720129838450,-500.0,0.00013698,2]
[331194426,1720129838460,-500.0,0.00013698,2]
[331194427,1720129838469,-500.0,0.00013698,2]
[331194428,1720129838478,-500.0,0.00013698,2]
[331194429,1720129838489,-500.0,0.00013698,2]
[331194430,1720129838499,-500.0,0.00013698,2]
[331194431,1720129838509,-500.0,0.00013698,2]
[331194432,1720129838518,-417.80167404,0.00013698,2]
[331194433,1720129838527,-500.0,0.00013698,2]
[331194434,1720129838537,-500.0,0.00013698,2]
[331194435,1720129838547,-500.0,0.00013698,2]
[331194437,1720129838556,-500.0,0.00013698,2]
[331194439,1720129838566,-503.03791609,0.00013698,2]
[331194441,1720129838576,-500.0,0.00013698,2]
[331194444,1720129838585,-500.0,0.00013698,2]
[331194446,1720129838595,-509.61141228,0.00013698,2]
[331194448,1720129838604,-500.0,0.00013698,2]
[331194450,1720129838614,-230.64,0.00013698,2]
[331194452,1720129838623,-517.02411873,0.00013698,2]
[331194453,1720129838632,-500.0,0.00013698,2]
[331194454,1720129838642,-500.0,0.00013698,2]
[331194455,1720129838651,-500.0,0.00013698,2]
[331194456,1720129838660,-500.0,0.00013698,2]
[331194457,1720129838669,-500.0,0.00013698,2]
[331194458,1720129838679,-505.0,0.00013698,2]
[331194459,1720129838688,-500.0,0.00013698,2]
[331194460,1720129838698,-500.0,0.00013698,2]
[331194461,1720129838707,-500.0,0.00013698,2]
[331194462,1720129838716,-500.0,0.00013698,2]
[331194463,1720129838726,-500.0,0.00013698,2]
[331194464,1720129838736,-500.0,0.00013698,2]
[331194465,1720129838745,-500.0,0.00013698,2]
[331194466,1720129838755,-500.0,0.00013698,2]
[331194467,1720129838764,-501.51636752,0.00013698,2]
[331194468,1720129838776,-500.0,0.00013698,2]
[331194469,1720129838785,-547.48,0.00013698,2]
[331194470,1720129838794,-524.67,0.00013698,2]
[331194471,1720129838803,-179.82155675,0.00013698,2]
[331194472,1720129838812,-500.0,0.00013698,2]
[331194473,1720129838821,-500.0,0.00013698,2]
[331194474,1720129838830,-661.15,0.00013698,2]
[331194475,1720129838839,-500.0,0.00013698,2]
[331194476,1720129838849,-408.71024123,0.00013698,2]
[331194477,1720129838858,-500.0,0.00013698,2]
[331194478,1720129838867,-500.0,0.00013698,2]
[331194479,1720129838877,-500.0,0.00013698,2]
[331194480,1720129838886,-500.0,0.00013698,2]
[331194481,1720129838895,-500.0,0.00013698,2]
[331194482,1720129838904,-500.0,0.00013698,2]
[331194483,1720129838914,-500.0,0.00013698,2]
[331194484,1720129838923,-295.83298247,0.00013698,2]
[331194485,1720129838933,-500.0,0.00013698,2]
[331194486,1720129838942,-500.0,0.00013698,2]
[331194487,1720129838951,-500.0,0.00013698,2]
[331194488,1720129838961,-500.0,0.00013698,2]
[331194489,1720129838970,-500.0,0.00013698,2]
[331194490,1720129838979,-500.0,0.00013698,2]
[331194491,1720129838988,-500.0,0.00013698,2]
[331194492,1720129838997,-500.0,0.00013698,2]
[331194493,1720129839007,-971.7,0.00013698,2]
[331194494,1720129839016,-500.0,0.00013698,2]
[331194495,1720129839026,-500.0,0.00013698,2]
[331194496,1720129839035,-559.10364024,0.00013698,2]
[331194497,1720129839048,-500.0,0.00013698,2]
[331194498,1720129839057,-500.0,0.00013698,2]
[331194499,1720129839067,-503.5846725,0.00013698,2]
[331194500,1720129839078,-500.0,0.00013698,2]
[331194501,1720129839087,-500.0,0.00013698,2]
[331194502,1720129839098,-500.0,0.00013698,2]
[331194503,1720129839107,-500.0,0.00013698,2]
[331194504,1720129839117,-500.0,0.00013698,2]
[331194505,1720129839127,-500.0,0.00013698,2]
[331194506,1720129839136,-500.0,0.00013698,2]
[331194507,1720129839146,-500.0,0.00013698,2]
[331194508,1720129839155,-500.0,0.00013698,2]
[331194509,1720129839165,-500.0,0.00013698,2]
[331194510,1720129839176,-500.0,0.00013698,2]
[331194511,1720129839185,-6573.63,0.00013698,2]
[331194512,1720129839199,-500.0,0.00013698,2]
[331194513,1720129839209,-500.0,0.00013698,2]
[331194514,1720129839219,-500.0,0.00013698,2]
[331194515,1720129839229,-500.0,0.00013698,2]
[331194516,1720129839240,-500.0,0.00013698,2]
[331194517,1720129839250,-500.0,0.00013698,2]
[331194518,1720129839263,-500.0,0.00013698,2]
[331194519,1720129839272,-500.0,0.00013698,2]
[331194520,1720129839283,-500.0,0.00013698,2]
[331194521,1720129839294,-500.0,0.00013698,2]
[331194522,1720129839303,-500.0,0.00013698,2]
[331194523,1720129839313,-500.0,0.00013698,2]
[331194524,1720129839322,-500.0,0.00013698,2]
[331194525,1720129839332,-500.0,0.00013698,2]
[331194526,1720129839342,-500.0,0.00013698,2]
[331194527,1720129839352,-500.0,0.00013698,2]
[331194528,1720129839361,-770.32,0.00013698,2]
[331194529,1720129839372,-3056.78,0.00013698,2]
[331194530,1720129839382,-500.0,0.00013698,2]
[331194531,1720129839398,-596.61,0.00013698,2]
[331194532,1720129839407,-405.73857827,0.00013698,2]
[331194533,1720129839416,-307.20175991,0.00013698,2]
[331194534,1720129839426,-206.01723877,0.00013698,2]
[331194535,1720129839435,-500.0,0.00013698,2]
[331194536,1720129839444,-961.09,0.00013698,2]
[331194537,1720129839454,-406.667883,0.00013698,2]
[331194538,1720129839464,-500.0,0.00013698,2]
[331194539,1720129839474,-500.0,0.00013698,2]
[331194540,1720129839483,-500.0,0.00013698,2]
[331194541,1720129839497,-500.0,0.00013698,2]
[331194542,1720129839633,-500.0,0.00013698,2]
[331194543,1720129839644,-500.0,0.00013698,2]
[331194544,1720129839654,-500.0,0.00013698,2]
[331194545,1720129839663,-500.0,0.00013698,2]
[331194546,1720129839672,-500.0,0.00013698,2]
[331194547,1720129839682,-500.0,0.00013698,2]
[331194548,1720129839691,-500.0,0.00013698,2]
[331194549,1720129839700,-500.0,0.00013698,2]
[331194550,1720129839709,-500.0,0.00013698,2]
[331194551,1720129839719,-500.0,0.00013698,2]
[331194552,1720129839729,-500.0,0.00013698,2]
[331194553,1720129839740,-170.17224905,0.00013698,2]
[331194554,1720129839750,-500.0,0.00013698,2]
[331194555,1720129839760,-500.0,0.00013698,2]
[331194556,1720129839770,-500.0,0.00013698,2]
[331194557,1720129839780,-500.0,0.00013698,2]
[331194558,1720129839789,-501.32742922,0.00013698,2]
[331194559,1720129839799,-500.0,0.00013698,2]
[331194560,1720129839808,-208.40912691,0.00013698,2]
[331194561,1720129839818,-530.49321375,0.00013698,2]
[331194562,1720129839827,-548.60034409,0.00013698,2]
[331194563,1720129839837,-500.0,0.00013698,2]
[331194564,1720129839848,-507.44106163,0.00013698,2]
[331194565,1720129839858,-500.0,0.00013698,2]
[331194566,1720129839867,-500.0,0.00013698,2]
[331194567,1720129839877,-500.0,0.00013698,2]
[331194568,1720129839886,-502.34145915,0.00013698,2]
[331194569,1720129839896,-500.0,0.00013698,2]
[331194570,1720129839906,-500.0,0.00013698,2]
[331194571,1720129839916,-500.0,0.00013698,2]
[331194572,1720129839925,-500.0,0.00013698,2]
[331194573,1720129839935,-500.0,0.00013698,2]
[331194574,1720129839944,-500.0,0.00013698,2]
[331194575,1720129839954,-500.0,0.00013698,2]
[331194576,1720129839964,-555.25,0.00013698,2]
[331194577,1720129839973,-500.0,0.00013698,2]
[331194578,1720129839983,-500.0,0.00013698,2]
[331194579,1720129839992,-500.0,0.00013698,2]
[331194580,1720129840002,-500.0,0.00013698,2]
[331194581,1720129840011,-500.0,0.00013698,2]